fUST/lending_fUST_20250611
["ID","MTS","AMOUNT","RATE_DAILY","PERIOD"]
[365398605,1749651052244,-849.35,0.00023561,4]
[365398606,1749651052254,-885.56,0.00023561,4]
[365398607,1749651052331,-460.0,0.00023561,4]
[365398608,1749651052342,-725.92,0.00023561,4]
[365398609,1749651052352,-460.0,0.00023561,4]
[365398610,1749651052361,-1441.28,0.00023561,4]
[365398611,1749651052370,-217.9481965,0.00023562,2]
[365398612,1749651052380,-881.0,0.00023563,2]
[365398613,1749651052390,-1501.94457672,0.00023568,2]
[365398614,1749651052400,-1500.0,0.00023568,2]
[365398615,1749651052409,-3000.0,0.0002357,2]
[365398616,1749651052419,-471.79278591,0.00023575,2]
[365398617,1749651052427,-3000.0,0.0002358,2]
[365398618,1749651052437,-151.0,0.0002358,7]
[365398619,1749651052446,-471.79278591,0.00023581,2]
[365398620,1749651052455,-3000.0,0.0002359,2]
[365398621,1749651052464,-489.74098231,0.00023596,2]
[365398622,1749651052473,-285.226439,0.00023596,7]
[365398623,1749651052483,-285.226439,0.00023596,7]
[365398624,1749651052492,-500.0,0.000236,9]
[365398625,1749651052502,-501.75778069,0.000236,9]
[365398626,1749651052511,-614.57,0.000236,7]
[365398627,1749651052520,-3000.0,0.000236,2]
[365398628,1749651052530,-639.0,0.000236,2]
[365398629,1749651052539,-3000.0,0.0002361,2]
[365398630,1749651052549,-151.0,0.00023612,7]
[365398631,1749651052558,-217.9481965,0.00023612,2]
[365398632,1749651052567,-3000.0,0.0002362,2]
[365398633,1749651052577,-633.0,0.00023629,2]
[365398634,1749651052586,-3000.0,0.0002363,2]
[365398635,1749651052595,-828.85,0.00023632,6]
[365398636,1749651052604,-471.79278591,0.00023633,2]
[365398637,1749651052614,-489.74098231,0.00023639,2]
[365398638,1749651052623,-646.0,0.0002364,2]
[365398639,1749651052633,-151.0,0.0002364,7]
[365398640,1749651052642,-151.0,0.0002364,7]
[365398641,1749651052650,-151.0,0.0002364,7]
[365398642,1749651052660,-3000.0,0.0002364,2]
[365398643,1749651052670,-166.50369972,0.00023644,2]
[365398644,1749651052680,-161.07315064,0.00023644,2]
[365398645,1749651052694,-328.66783167,0.00023644,2]
[365398646,1749651052703,-151.0,0.0002365,7]
[365398647,1749651052712,-377.373418,0.0002365,7]
[365398648,1749651052721,-377.373418,0.0002365,7]
[365398649,1749651052732,-3000.0,0.0002365,2]
[365398650,1749651052741,-217.9481965,0.00023655,2]
[365398651,1749651052751,-489.74098231,0.00023656,2]
[365398652,1749651052759,-471.79278591,0.00023658,2]
[365398653,1749651052768,-1527.89568885,0.00023659,9]
[365398654,1749651052778,-217.9481965,0.00023659,2]
[365398655,1749651052787,-3000.0,0.0002366,2]
[365398656,1749651052797,-151.0,0.00023665,7]
[365398657,1749651052807,-151.0,0.00023665,7]
[365398658,1749651052816,-3000.0,0.0002367,2]
[365398659,1749651052825,-6916.59620625,0.0002368,2]
[365398660,1749651052834,-3000.0,0.0002368,2]
[365398661,1749651052843,-260.174994,0.0002368,7]
[365398662,1749651052853,-260.174994,0.0002368,7]
[365398663,1749651052862,-155.314783,0.0002368,7]
[365398664,1749651052871,-285.226439,0.0002368,7]
[365398665,1749651052880,-285.226439,0.0002368,7]
[365398666,1749651052890,-3000.0,0.0002369,2]
[365398667,1749651052900,-160.0,0.00023695,6]
[365398668,1749651052909,-363.7766325,0.00023699,2]
[365398669,1749651052919,-3000.0,0.000237,2]
[365398670,1749651052929,-3000.0,0.0002371,2]
[365398671,1749651052938,-800.0,0.00023714,2]
[365398672,1749651052948,-3000.0,0.0002372,2]
[365398673,1749651052958,-3000.0,0.0002373,2]
[365398674,1749651052967,-828.85,0.00023732,3]
[365398675,1749651052977,-6633.34,0.00023732,11]
[365398676,1749651052987,-5888.0,0.00023734,2]
[365398677,1749651052996,-4120.163014,0.0002374,2]
[365398678,1749651053007,-166.50369972,0.00023753,2]
[365398679,1749651053021,-986.6095058,0.00023753,3]
[365398680,1749651053030,-5000.0,0.00023761,2]
[365398681,1749651053040,-151.0,0.00023762,7]
[365398682,1749651053050,-161.255144,0.00023762,7]
[365398683,1749651053059,-1527.89568885,0.00023762,9]
[365398684,1749651053068,-600.0,0.00023765,2]
[365398685,1749651053077,-4144.88677235,0.0002377,2]
[365398686,1749651053088,-163.898964,0.00023773,7]
[365398687,1749651053097,-163.898964,0.00023773,7]
[365398688,1749651053107,-376.984195,0.00023773,7]
[365398689,1749651053117,-376.984195,0.00023773,7]
[365398690,1749651053126,-899211.8271822,0.0002379,15]
[365398691,1749651053136,-104142.90066104,0.000238,3]
[365398692,1749651053145,-151.0,0.000238,7]
[365398693,1749651053154,-377.373418,0.000238,7]
[365398694,1749651053163,-377.373418,0.000238,7]
[365398695,1749651053172,-151.0,0.000238,7]
[365398696,1749651053182,-151.0,0.000238,7]
[365398697,1749651053192,-151.0,0.000238,7]
[365398698,1749651053201,-151.0,0.000238,7]
[365398699,1749651053211,-260.174994,0.000238,7]
[365398700,1749651053220,-260.174994,0.000238,7]
[365398701,1749651053230,-285.226439,0.000238,7]
[365398702,1749651053239,-285.226439,0.000238,7]
[365398703,1749651053249,-160.0,0.000238,3]
[365398704,1749651053258,-161.016394,0.000238,7]
[365398705,1749651053267,-844.64040732,0.000238,3]
[365398706,1749651053277,-160.0,0.000238,3]
[365398707,1749651053287,-213.16534259,0.000238,3]
[365398708,1749651053296,-4191.82052333,0.000238,3]
[365398709,1749651053309,-7668.43138943,0.000238,3]
[365398710,1749651053319,-229.71724145,0.000238,3]
[365398711,1749651053328,-160.0,0.000238,3]
[365398712,1749651053337,-835.03886221,0.000238,3]
[365398713,1749651053347,-424.19973472,0.000238,3]
[365398714,1749651053356,-160.0,0.000238,3]
[365398715,1749651053366,-153.0,0.00023808,2]
[365398716,1749651053376,-153.0,0.00023808,2]
[365398717,1749651053385,-153.0,0.00023808,2]
[365398718,1749651053394,-153.0,0.00023808,2]
[365398719,1749651053404,-153.0,0.00023808,2]
[365398720,1749651053413,-306.0,0.00023808,2]
[365398721,1749651053422,-2000.0,0.00023816,2]
[365398722,1749651053431,-3120.77,0.00023824,2]
[365398723,1749651053440,-828.85,0.00023832,6]
[365398724,1749651053450,-206.57,0.00023834,2]
[365398725,1749651053459,-589.43592663,0.00023835,4]
[365398726,1749651053471,-8.09407337,0.00023835,4]
[365398727,1749651053482,-463.07,0.00023835,4]
[365398728,1749651053491,-841.99,0.00023835,4]
[365398729,1749651053499,-460.0,0.00023835,4]
[365398730,1749651053509,-1545.01,0.00023835,4]
[365398731,1749651053518,-460.0,0.00023835,2]
[365398732,1749651053527,-460.0,0.00023835,4]
[365398733,1749651053537,-1207.26,0.00023835,4]
[365398734,1749651053611,-1930.21,0.00023835,4]
[365398735,1749651053621,-460.0,0.00023835,4]
[365398736,1749651053631,-1277.79,0.00023835,4]
[365398737,1749651053640,-1108.04,0.00023835,4]
[365398738,1749651053649,-590.97,0.00023835,4]
[365398739,1749651053659,-849.35,0.00023835,4]
[365398740,1749651053668,-885.56,0.00023835,4]
[365398741,1749651053677,-460.0,0.00023835,4]
[365398742,1749651053687,-725.92,0.00023835,4]
[365398743,1749651053699,-460.0,0.00023835,4]
[365398744,1749651053708,-1441.28,0.00023835,4]
[365398745,1749651053717,-438.0,0.00023852,2]
[365398746,1749651053728,-438.0,0.00023855,2]
[365398747,1749651053737,-166.50369972,0.00023863,2]
[365398748,1749651053746,-1527.89568885,0.00023866,10]
[365398749,1749651053756,-632.35509015,0.00023868,2]
[365398750,1749651053765,-438.0,0.00023888,2]
[365398751,1749651053775,-84995.22178286,0.000239,7]
[365398752,1749651053801,-4646.57251614,0.00021624,2]
[365398753,1749651053900,-2185.63615654,0.00021076,2]
[365398754,1749651053913,-1494.58660333,0.00021076,2]
[365398755,1749651053922,-11353.42748386,0.00021624,2]
[365398756,1749651053932,-12112.3245673,0.00022172,2]
[365398757,1749651053944,-3887.6754327,0.00022172,2]
[365398758,1749651053953,-16000.0,0.0002272,2]
[365398759,1749651053963,-41134.64821714,0.000239,7]
[365398760,1749651053972,-503.00566977,0.00023921,2]
[365398761,1749651053984,-699.48896329,0.00023921,2]
[365398762,1749651053993,-1002.09184424,0.00023921,2]
[365398763,1749651054003,-1000.0,0.00023921,2]
[365398764,1749651054016,-1005.84635583,0.00023921,2]
[365398765,1749651054026,-1000.0,0.00023921,2]
[365398766,1749651054035,-1000.0,0.00023921,2]
[365398767,1749651054045,-1000.0,0.00023921,2]
[365398768,1749651054055,-505.53938396,0.00023921,2]
[365398769,1749651054064,-321.20413307,0.00023921,2]
[365398776,1749651804727,1000.0,0.00024,120]
[365398785,1749651976988,165.319389,0.00013699,2]
[365398819,1749652138870,-15000.0,0.00018,2]
[365398820,1749652154163,2933.53843536,0.00018,2]
[365398821,1749652154188,2066.46156464,0.00018,2]
[365398822,1749652169505,5000.0,0.00018,2]
[365398823,1749652171338,-394.0512,0.00018,2]
[365398898,1749652232511,-5000.0,0.0001981,2]
[365398899,1749652232521,-505.0,0.0002001,2]
[365398901,1749652232530,-184.04671,0.00020284,2]
[365398903,1749652232540,-179.836,0.0002046,2]
[365398906,1749652232549,-1270.57904985,0.00020789,2]
[365398907,1749652232559,-1009.99,0.00020963,2]
[365398909,1749652232568,-300.0,0.00021094,2]
[365398911,1749652232578,-300.0,0.00021094,2]
[365398913,1749652232587,-151.0,0.00021095,2]
[365398915,1749652232597,-151.0,0.00021095,2]
[365398917,1749652232606,-151.0,0.00021095,2]
[365398920,1749652232616,-153.7149,0.00021095,2]
[365398923,1749652232625,-151.0,0.00021095,2]
[365398926,1749652232635,-151.0,0.00021095,2]
[365398929,1749652232644,-337.162914,0.00021095,2]
[365398932,1749652232653,-337.162914,0.00021095,2]
[365398935,1749652232664,-337.162914,0.00021095,2]
[365398938,1749652232674,-337.162914,0.00021095,2]
[365398939,1749652232683,-9.18168415,0.00021095,2]
[365399023,1749652238681,-327.98122985,0.00021095,2]
[365399025,1749652238691,-292.6158332,0.00021095,2]
[365399033,1749652238765,-44.5470808,0.00021095,2]
[365399035,1749652238775,-151.0,0.00021095,2]
[365399037,1749652238784,-151.0,0.00021095,2]
[365399039,1749652238794,-151.963601,0.00021095,2]
[365399042,1749652238804,-374.81654254,0.00021095,4]
[365399044,1749652238814,-460.0,0.00021095,4]
[365399046,1749652238823,-440.0,0.00021095,4]
[365399048,1749652238833,-460.0,0.00021095,4]
[365399050,1749652238842,-460.0,0.00021095,4]
[365399052,1749652238851,-430.0,0.00021095,4]
[365399053,1749652238860,-460.0,0.00021095,4]
[365399054,1749652238869,-440.0,0.00021095,4]
[365399055,1749652238878,-460.0,0.00021095,2]
[365399056,1749652238887,-836.88,0.00021095,4]
[365399057,1749652238897,-460.0,0.00021095,4]
[365399058,1749652238906,-460.0,0.00021095,4]
[365399059,1749652238917,-257.98741145,0.00021095,4]
[365399060,1749652238926,-1045.53,0.00021095,4]
[365399061,1749652238935,-460.0,0.00021095,4]
[365399062,1749652238944,-692.13,0.00021095,4]
[365399063,1749652238953,-653.94,0.00021095,4]
[365399064,1749652238963,-460.0,0.00021095,4]
[365399065,1749652238971,-460.06,0.00021095,4]
[365399066,1749652238981,-600.18,0.00021095,4]
[365399067,1749652238989,-780.69,0.00021095,4]
[365399068,1749652238999,-479.68,0.00021095,4]
[365399069,1749652239008,-460.0,0.00021095,4]
[365399070,1749652239018,-460.0,0.00021095,4]
[365399072,1749652239027,-460.0,0.00021095,4]
[365399074,1749652239036,-460.0,0.00021095,4]
[365399075,1749652239046,-520.65109597,0.00021269,2]
[365399077,1749652239056,-151.0,0.00021369,2]
[365399079,1749652239065,-151.0,0.00021369,2]
[365399081,1749652239075,-337.162914,0.00021369,2]
[365399083,1749652239084,-337.162914,0.00021369,2]
[365399085,1749652239094,-154.64014863,0.00021369,4]
[365399087,1749652239103,-460.0,0.00021369,4]
[365399089,1749652239112,-460.0,0.00021369,4]
[365399091,1749652239122,-460.0,0.00021369,4]
[365399093,1749652239131,-460.0,0.00021369,2]
[365399095,1749652239140,-836.88,0.00021369,4]
[365399097,1749652239150,-460.0,0.00021369,4]
[365399099,1749652239159,-460.0,0.00021369,4]
[365399101,1749652239174,-1045.53,0.00021369,4]
[365399103,1749652239183,-460.0,0.00021369,4]
[365399105,1749652239192,-692.13,0.00021369,4]
[365399107,1749652239202,-653.94,0.00021369,4]
[365399109,1749652239211,-460.0,0.00021369,4]
[365399111,1749652239222,-460.06,0.00021369,4]
[365399113,1749652239232,-600.18,0.00021369,4]
[365399115,1749652239242,-780.69,0.00021369,4]
[365399118,1749652239251,-479.68,0.00021369,4]
[365399119,1749652239261,-460.0,0.00021369,4]
[365399121,1749652239271,-460.0,0.00021369,4]
[365399123,1749652239280,-460.0,0.00021369,4]
[365399125,1749652239290,-162.47,0.00021369,4]
[365399127,1749652239299,-305.0,0.000215,2]
[365399129,1749652239308,-151.0,0.00021643,2]
[365399131,1749652239317,-337.162914,0.00021643,2]
[365399133,1749652239327,-337.162914,0.00021643,2]
[365399135,1749652239336,-460.0,0.00021643,4]
[365399137,1749652239345,-460.0,0.00021643,4]
[365399139,1749652239354,-460.0,0.00021643,2]
[365399140,1749652239363,-836.88,0.00021643,4]
[365399142,1749652239373,-460.0,0.00021643,4]
[365399145,1749652239383,-460.0,0.00021643,4]
[365399146,1749652239392,-1045.53,0.00021643,4]
[365399148,1749652239404,-460.0,0.00021643,4]
[365399150,1749652239415,-692.13,0.00021643,4]
[365399153,1749652239425,-653.94,0.00021643,4]
[365399154,1749652239435,-460.0,0.00021643,4]
[365399156,1749652239446,-460.06,0.00021643,4]
[365399159,1749652239455,-600.18,0.00021643,4]
[365399161,1749652239465,-780.69,0.00021643,4]
[365399163,1749652239475,-479.68,0.00021643,4]
[365399164,1749652239484,-460.0,0.00021643,4]
[365399166,1749652239494,-460.0,0.00021643,4]
[365399169,1749652239504,-460.0,0.00021643,4]
[365399171,1749652239513,-521.56263175,0.00021706,2]
[365399173,1749652239523,-412.29305385,0.00021706,2]
[365399175,1749652239533,-520.65109596,0.00021781,2]
[365399177,1749652239543,-500.0,0.00021854,2]
[365399179,1749652239552,-502.66042553,0.00021854,2]
[365399181,1749652239562,-160.0,0.00021872,2]
[365399183,1749652239571,-160.0,0.00021872,2]
[365399185,1749652239580,-229.71724145,0.00021872,2]
[365399187,1749652239589,-160.0,0.00021872,2]
[365399189,1749652239599,-160.0,0.00021872,2]
[365399191,1749652239608,-835.03886221,0.00021872,2]
[365399193,1749652239617,-160.0,0.00021872,2]
[365399195,1749652239627,-160.0,0.00021872,2]
[365399197,1749652239636,-424.19973472,0.00021872,2]
[365399199,1749652239646,-213.16534259,0.00021872,2]
[365399201,1749652239656,-844.64040732,0.00021872,2]
[365399203,1749652239668,-151.0,0.00021886,2]
[365399205,1749652239677,-603.76747169,0.000219,6]
[365399207,1749652239687,-222.25243511,0.000219,2]
[365399209,1749652239696,-151.0,0.00021917,2]
[365399211,1749652239706,-337.162914,0.00021917,2]
[365399213,1749652239716,-337.162914,0.00021917,2]
[365399215,1749652239726,-460.0,0.00021917,4]
[365399217,1749652239735,-460.0,0.00021917,4]
[365399219,1749652239744,-460.0,0.00021917,2]
[365399221,1749652239754,-836.88,0.00021917,4]
[365399223,1749652239763,-460.0,0.00021917,4]
[365399225,1749652239772,-460.0,0.00021917,4]
[365399227,1749652239781,-1045.53,0.00021917,4]
[365399229,1749652239790,-460.0,0.00021917,4]
[365399231,1749652239799,-692.13,0.00021917,4]
[365399233,1749652239808,-653.94,0.00021917,4]
[365399235,1749652239818,-460.0,0.00021917,4]
[365399237,1749652239827,-460.06,0.00021917,4]
[365399240,1749652239837,-600.18,0.00021917,4]
[365399243,1749652239848,-780.69,0.00021917,4]
[365399247,1749652239861,-479.68,0.00021917,4]
[365399249,1749652239873,-460.0,0.00021917,4]
[365399251,1749652239886,-460.0,0.00021917,4]
[365399254,1749652239898,-460.0,0.00021917,4]
[365399256,1749652239910,-183.35058372,0.00021944,2]
[365399258,1749652239920,-283.90234346,0.00021944,2]
[365399260,1749652239930,-500.0,0.00021944,2]
[365399262,1749652239941,-489.29226483,0.00021975,2]
[365399264,1749652239952,-176.4,0.0002199,10]
[365399267,1749652239964,-13310.07562572,0.0002199,2]
[365399269,1749652239975,-632.10063231,0.00021992,2]
[365399270,1749652239986,-160.0,0.00022,2]
[365399273,1749652239998,-1000.0,0.00022,22]
[365399275,1749652240010,-10761.91278064,0.00022,2]
[365399277,1749652240022,-7582.50378393,0.00022,2]
[365399280,1749652240033,-76293.9245168,0.00022,2]
[365399282,1749652240044,-1102.11289845,0.00022,30]
[365399284,1749652240056,-603.7674715,0.00022003,6]
[365399286,1749652240067,-151.1861261,0.00022025,2]
[365399288,1749652240080,-415.62725749,0.00022025,2]
[365399291,1749652240091,-160.0,0.0002203,3]
[365399293,1749652240103,-500.0,0.00022062,2]
[365399295,1749652240114,-603.7674715,0.00022107,6]
[365399297,1749652240125,-156.23164914,0.00022116,2]
[365399300,1749652240137,-500.0,0.00022116,2]
[365399302,1749652240148,-269.4376272,0.00022116,2]
[365399304,1749652240159,-500.0,0.00022116,2]
[365399306,1749652240174,-500.0,0.00022116,2]
[365399309,1749652240186,-500.0,0.00022116,2]
[365399311,1749652240198,-500.0,0.00022116,2]
[365399313,1749652240209,-188.77519655,0.00022116,2]
[365399315,1749652240220,-500.0,0.00022116,2]
[365399317,1749652240231,-500.0,0.00022116,2]
[365399320,1749652240241,-500.0,0.00022116,2]
[365399322,1749652240251,-500.0,0.00022116,2]
[365399324,1749652240261,-500.0,0.00022116,2]
[365399326,1749652240273,-155.53505481,0.00022116,2]
[365399328,1749652240284,-500.0,0.00022116,2]
[365399330,1749652240295,-500.0,0.00022116,2]
[365399333,1749652240306,-500.0,0.00022116,2]
[365399335,1749652240318,-500.16005536,0.00022116,2]
[365399337,1749652240329,-500.0,0.00022116,2]
[365399339,1749652240341,-500.0,0.00022116,2]
[365399342,1749652240353,-500.0,0.00022116,2]
[365399344,1749652240364,-500.0,0.00022116,2]
[365399346,1749652240376,-500.0,0.00022116,2]
[365399348,1749652240388,-500.0,0.00022116,2]
[365399350,1749652240401,-500.0,0.00022116,2]
[365399353,1749652240417,-500.0,0.00022116,2]
[365399355,1749652240430,-500.0,0.00022116,2]
[365399357,1749652240441,-500.0,0.00022116,2]
[365399359,1749652240451,-500.0,0.00022116,2]
[365399362,1749652240462,-500.0,0.00022116,2]
[365399364,1749652240472,-500.0,0.00022116,2]
[365399366,1749652240485,-500.0,0.00022116,2]
[365399368,1749652240496,-500.0,0.00022116,2]
[365399370,1749652240508,-500.0,0.00022116,2]
[365399373,1749652240521,-500.0,0.00022116,2]
[365399375,1749652240532,-500.0,0.00022116,2]
[365399377,1749652240544,-500.0,0.00022116,2]
[365399379,1749652240556,-500.0,0.00022116,2]
[365399381,1749652240566,-500.0,0.00022116,2]
[365399383,1749652240576,-500.0,0.00022116,2]
[365399385,1749652240586,-500.0,0.00022116,2]
[365399388,1749652240597,-500.0,0.00022116,2]
[365399390,1749652240607,-500.0,0.00022116,2]
[365399392,1749652240620,-500.0,0.00022116,2]
[365399394,1749652240631,-500.0,0.00022116,2]
[365399396,1749652240642,-500.0,0.00022116,2]
[365399398,1749652240654,-500.0,0.00022116,2]
[365399401,1749652240666,-500.0,0.00022116,2]
[365399403,1749652240679,-500.0,0.00022116,2]
[365399405,1749652240694,-500.0,0.00022116,2]
[365399407,1749652240704,-574.79411284,0.00022116,2]
[365399409,1749652240715,-500.0,0.00022116,2]
[365399411,1749652240725,-500.0,0.00022116,2]
[365399413,1749652240736,-500.0,0.00022116,2]
[365399415,1749652240746,-500.0,0.00022116,2]
[365399417,1749652240757,-500.0,0.00022116,2]
[365399420,1749652240768,-500.0,0.00022116,2]
[365399422,1749652240779,-500.0,0.00022116,2]
[365399424,1749652240790,-452.75490143,0.00022116,2]
[365399426,1749652240801,-500.0,0.00022116,2]
[365399428,1749652240812,-500.0,0.00022116,2]
[365399430,1749652240823,-500.0,0.00022116,2]
[365399433,1749652240838,-500.0,0.00022116,2]
[365399435,1749652240848,-250.0,0.00022116,2]
[365399437,1749652240859,-151.0,0.00022117,7]
[365399439,1749652240869,-337.162914,0.00022117,7]
[365399441,1749652240880,-337.162914,0.00022117,7]
[365399443,1749652240891,-5000.0,0.00022117,2]
[365399446,1749652240902,-207.4,0.00022117,2]
[365399448,1749652240913,-750.0,0.00022117,2]
[365399450,1749652240923,-750.0,0.00022117,2]
[365399452,1749652240934,-750.0,0.00022117,2]
[365399454,1749652240944,-750.0,0.00022117,2]
[365399456,1749652240958,-750.0,0.00022117,2]
[365399457,1749652240969,-680.31890208,0.00022117,2]
[365399458,1749652241076,-69.68109792,0.00022117,2]
[365399460,1749652241087,-750.0,0.00022117,2]
[365399462,1749652241097,-750.0,0.00022117,2]
[365399465,1749652241108,-1255.31890208,0.00022117,2]
[365399467,1749652241121,-872.40698985,0.00022117,2]
[365399488,1749652241307,-318.52487336,0.00022117,2]
[365399490,1749652241317,-181.47512664,0.00022117,2]
[365399492,1749652241328,-568.52487336,0.00022117,2]
[365399494,1749652241338,-750.0,0.00022117,2]
[365399496,1749652241347,-551.64906066,0.00022117,2]
[365399551,1749652243300,-485.72,0.00020303,2]
[365399552,1749652243310,-971.43,0.0002127,2]
[365399553,1749652243319,-198.35093934,0.00022117,2]
[365399554,1749652243329,-750.0,0.00022117,2]
[365399555,1749652243338,-750.0,0.00022117,2]
[365399556,1749652243347,-299.96414208,0.00022117,2]
[365399557,1749652243357,-285.78694,0.0002212,7]
[365399558,1749652243366,-155.79284296,0.0002213,2]
[365399559,1749652243376,-156.7085631,0.0002213,2]
[365399560,1749652243385,-151.36051478,0.0002213,2]
[365399561,1749652243395,-152.73949397,0.0002213,2]
[365399562,1749652243407,-152.33887527,0.0002213,2]
[365399563,1749652243419,-151.52075885,0.0002213,2]
[365399565,1749652243429,-399.41820283,0.00022147,2]
[365399567,1749652243439,-460.0,0.00022191,4]
[365399568,1749652243451,-460.0,0.00022191,4]
[365399569,1749652243461,-460.0,0.00022191,2]
[365399570,1749652243471,-836.88,0.00022191,4]
[365399571,1749652243482,-460.0,0.00022191,4]
[365399572,1749652243493,-460.0,0.00022191,4]
[365399573,1749652243502,-1045.53,0.00022191,4]
[365399574,1749652243512,-460.0,0.00022191,4]
[365399576,1749652243522,-692.13,0.00022191,4]
[365399578,1749652243532,-653.94,0.00022191,4]
[365399580,1749652243541,-460.0,0.00022191,4]
[365399582,1749652243551,-460.06,0.00022191,4]
[365399583,1749652243561,-600.18,0.00022191,4]
[365399584,1749652243571,-780.69,0.00022191,4]
[365399585,1749652243580,-479.68,0.00022191,4]
[365399586,1749652243589,-460.0,0.00022191,4]
[365399587,1749652243599,-460.0,0.00022191,4]
[365399588,1749652243608,-460.0,0.00022191,4]
[365399589,1749652243618,-1000.0,0.00022192,2]
[365399590,1749652243627,-151.0,0.00022198,7]
[365399591,1749652243637,-151.0,0.000222,7]
[365399592,1749652243646,-151.0,0.000222,7]
[365399593,1749652243655,-337.162914,0.000222,7]
[365399594,1749652243667,-337.162914,0.000222,7]
[365399595,1749652243676,-168.0,0.00022204,2]
[365399596,1749652243686,-603.7674715,0.0002221,6]
[365399597,1749652243695,-1457.15,0.00022236,2]
[365399598,1749652243704,-520.65109596,0.00022292,2]
[365399599,1749652243714,-603.7674715,0.00022314,7]
[365399600,1749652243723,-603.7674715,0.00022417,7]
[365399601,1749652243733,-337.162914,0.00022451,7]
[365399602,1749652243743,-337.162914,0.00022451,7]
[365399603,1749652243755,-151.0,0.00022465,7]
[365399604,1749652243776,-241.173482,0.00022465,7]
[365399605,1749652243793,-460.0,0.00022465,4]
[365399606,1749652243804,-460.0,0.00022465,4]
[365399607,1749652243814,-460.0,0.00022465,2]
[365399608,1749652243824,-836.88,0.00022465,4]
[365399609,1749652243835,-460.0,0.00022465,4]
[365399610,1749652243845,-460.0,0.00022465,4]
[365399611,1749652243856,-1045.53,0.00022465,4]
[365399612,1749652243868,-460.0,0.00022465,4]
[365399613,1749652243878,-692.13,0.00022465,4]
[365399614,1749652243887,-653.94,0.00022465,4]
[365399615,1749652243898,-460.0,0.00022465,4]
[365399616,1749652243908,-460.06,0.00022465,4]
[365399617,1749652243919,-600.18,0.00022465,4]
[365399618,1749652243929,-780.69,0.00022465,4]
[365399619,1749652243939,-479.68,0.00022465,4]
[365399620,1749652243948,-460.0,0.00022465,4]
[365399621,1749652243957,-405.34205539,0.00022465,4]
[365399622,1749652243967,-460.0,0.00022465,4]
[365399623,1749652243976,-328.0,0.00022483,2]
[365399624,1749652243984,-281.84571865,0.00022492,2]
[365399625,1749652243997,-718.15428135,0.00022492,2]
[365399626,1749652244006,-1001.44268132,0.000225,2]
[365399627,1749652244016,-471.06647392,0.00022521,7]
[365399644,1749652246300,-132.70099758,0.00022521,7]
[365399645,1749652246310,-160.0,0.00022585,4]
[365399646,1749652246319,-603.7674715,0.00022624,7]
[365399647,1749652246334,-7812.73580237,0.00022628,2]
[365399652,1749652452303,-160.0,0.00020091,2]
[365399653,1749652507475,1000.0,0.00024,120]
[365399654,1749652538589,-300.0,0.00020049,2]
[365399655,1749652538611,-8249.0,0.0002005,2]
[365399658,1749652608212,1000.0,0.00017999,2]
[365399659,1749652618887,1000.0,0.00017999,2]
[365399660,1749652634430,1000.0,0.00017999,2]
[365399661,1749652648261,1202.97248007,0.00017999,2]
[365399706,1749653264969,165.319389,0.00013699,2]
[365399763,1749653432597,-236.55315767,0.000189,2]